[Event "*** Titled Tuesday 3|2 Blitz (Early)"]
[Site "Chess.com"]
[Date "2017.01.03"]
[Round "3"]
[White "Anton_Demchenko"]
[Black "biostatistician"]
[Result "1-0"]
[WhiteElo "2642"]
[BlackElo "2437"]
[TimeControl "180+2"]
[EndTime "11:36:09 PST"]
[Termination "Anton_Demchenko won by resignation"]

1. e4 {[%clk 0:03:01.9]} 1... e6 {[%clk 0:03:00.6]} 2. d4 {[%clk 0:03:02.1]}
2... d5 {[%clk 0:03:02.5]} 3. Nd2 {[%clk 0:03:03.6]} 3... Nc6 {[%clk 0:03:02.9]}
4. Ngf3 {[%clk 0:03:03.5]} 4... Nf6 {[%clk 0:03:04.4]} 5. e5 {[%clk 0:03:04.5]}
5... Ne4 {[%clk 0:03:06]} 6. c3 {[%clk 0:02:53.9]} 6... Nxd2 {[%clk 0:03:02.5]}
7. Bxd2 {[%clk 0:02:54.6]} 7... b6 {[%clk 0:03:03.9]} 8. Bb5 {[%clk 0:02:51.7]}
8... Bd7 {[%clk 0:03:04.5]} 9. Qe2 {[%clk 0:02:50.5]} 9... Na5 {[%clk
0:03:02.6]} 10. Bd3 {[%clk 0:02:49.7]} 10... Be7 {[%clk 0:02:53.9]} 11. h4
{[%clk 0:02:40]} 11... h6 {[%clk 0:02:53.6]} 12. Rh3 {[%clk 0:02:38.2]} 12... c5
{[%clk 0:02:54.3]} 13. h5 {[%clk 0:02:31.7]} 13... cxd4 {[%clk 0:02:25.4]} 14.
Nxd4 {[%clk 0:02:17.9]} 14... Nc4 {[%clk 0:02:21.8]} 15. Bxc4 {[%clk 0:02:13.5]}
15... dxc4 {[%clk 0:02:23.7]} 16. Qxc4 {[%clk 0:02:01.9]} 16... O-O {[%clk
0:02:23]} 17. Rg3 {[%clk 0:01:56.1]} 17... Kh8 {[%clk 0:02:21.3]} 18. Qe2 {[%clk
0:01:46.1]} 18... Rc8 {[%clk 0:02:07.7]} 19. Qg4 {[%clk 0:01:42.3]} 19... Rg8
{[%clk 0:02:07.9]} 20. O-O-O {[%clk 0:01:37.1]} 20... Rc5 {[%clk 0:02:08.4]} 21.
Qe4 {[%clk 0:01:19.4]} 21... Qc7 {[%clk 0:01:56]} 22. f4 {[%clk 0:01:15.7]}
22... Ba4 {[%clk 0:01:50.8]} 23. b3 {[%clk 0:00:38.7]} 23... Bc6 {[%clk
0:01:47.9]} 24. Nxc6 {[%clk 0:00:39.1]} 24... Rxc6 {[%clk 0:01:49.8]} 25. Rd3
{[%clk 0:00:35.9]} 25... Ba3+ {[%clk 0:01:43.6]} 26. Kc2 {[%clk 0:00:33.6]}
26... Rc8 {[%clk 0:01:40.4]} 27. g4 {[%clk 0:00:32.5]} 27... a5 {[%clk 0:01:35]}
28. g5 {[%clk 0:00:29.1]} 28... Bb4 {[%clk 0:01:35.9]} 29. gxh6 {[%clk
0:00:28.4]} 29... Bxc3 {[%clk 0:00:54.7]} 30. hxg7+ {[%clk 0:00:27.8]} 30... Kg8
{[%clk 0:00:55.1]} 31. Bxc3 {[%clk 0:00:24.1]} 31... Rxc3+ {[%clk 0:00:57]} 32.
Rxc3 {[%clk 0:00:25.3]} 32... Qxc3+ {[%clk 0:00:58.6]} 33. Kb1 {[%clk 0:00:27]}
33... a4 {[%clk 0:00:55.7]} 34. Qd3 {[%clk 0:00:22.7]} 34... axb3 {[%clk
0:00:47.6]} 35. Qxc3 {[%clk 0:00:23.4]} 35... Rxc3 {[%clk 0:00:42.2]} 36. h6
{[%clk 0:00:24.7]} 36... bxa2+ {[%clk 0:00:40.5]} 37. Kxa2 {[%clk 0:00:26.1]}
37... Rc8 {[%clk 0:00:42.1]} 38. Rd7 {[%clk 0:00:12.7]} 38... Kh7 {[%clk
0:00:15]} 39. Rxf7 {[%clk 0:00:13.7]} 39... Rc2+ {[%clk 0:00:15]} 40. Kb3 {[%clk
0:00:14.4]} 40... Rg2 {[%clk 0:00:16.9]} 41. Rf6 {[%clk 0:00:14.7]} 41... Rg1
{[%clk 0:00:10.9]} 42. Rf8 {[%clk 0:00:13.5]} 42... Kxh6 {[%clk 0:00:08.8]} 43.
g8=Q {[%clk 0:00:13.9]} 43... Rxg8 {[%clk 0:00:10.5]} 44. Rxg8 {[%clk
0:00:15.8]} 1-0

[Event "*** Titled Tuesday 3|2 Blitz (Early)"]
[Site "Chess.com"]
[Date "2017.01.03"]
[Round "3"]
[White "Izoria123"]
[Black "FlySooHigh"]
[Result "1-0"]
[WhiteElo "2689"]
[BlackElo "2469"]
[TimeControl "180+2"]
[EndTime "11:36:11 PST"]
[Termination "Izoria123 won on time"]

1. Nf3 {[%clk 0:03:02]} 1... Nf6 {[%clk 0:03:00.5]} 2. c4 {[%clk 0:03:03.1]}
2... c5 {[%clk 0:03:01.3]} 3. Nc3 {[%clk 0:03:03.1]} 3... b6 {[%clk 0:03:02.1]}
4. e4 {[%clk 0:03:03.3]} 4... d6 {[%clk 0:03:03.1]} 5. d4 {[%clk 0:03:04.1]}
5... cxd4 {[%clk 0:03:05]} 6. Nxd4 {[%clk 0:03:05.6]} 6... Bb7 {[%clk 0:03:03]}
7. Qe2 {[%clk 0:03:06.7]} 7... e6 {[%clk 0:03:03.1]} 8. g3 {[%clk 0:03:07.3]}
8... a6 {[%clk 0:03:00.9]} 9. Bg2 {[%clk 0:03:08.3]} 9... Qc7 {[%clk 0:03:02.1]}
10. O-O {[%clk 0:03:09.1]} 10... Be7 {[%clk 0:03:02.9]} 11. Rd1 {[%clk
0:02:41.8]} 11... Nbd7 {[%clk 0:03:03]} 12. a4 {[%clk 0:02:42]} 12... Rc8 {[%clk
0:03:02.2]} 13. b3 {[%clk 0:02:42.6]} 13... O-O {[%clk 0:02:58.7]} 14. h3 {[%clk
0:02:37.4]} 14... Rfe8 {[%clk 0:02:59]} 15. Be3 {[%clk 0:02:13.3]} 15... Bf8
{[%clk 0:02:41.8]} 16. Re1 {[%clk 0:01:55.3]} 16... Nc5 {[%clk 0:02:37.6]} 17.
Qc2 {[%clk 0:01:53.8]} 17... g6 {[%clk 0:02:28.5]} 18. Rad1 {[%clk 0:01:53.7]}
18... Bg7 {[%clk 0:02:24.8]} 19. Bc1 {[%clk 0:01:36.9]} 19... Qb8 {[%clk
0:02:20.4]} 20. Bb2 {[%clk 0:01:36.3]} 20... Qa8 {[%clk 0:02:19.4]} 21. Re2
{[%clk 0:01:36.1]} 21... e5 {[%clk 0:02:14]} 22. Nf3 {[%clk 0:01:25.2]} 22...
Nfxe4 {[%clk 0:02:14.7]} 23. Ne1 {[%clk 0:01:22.6]} 23... Nxc3 {[%clk
0:01:53.3]} 24. Bxc3 {[%clk 0:01:24.5]} 24... Red8 {[%clk 0:01:33.2]} 25. Bxb7
{[%clk 0:01:15.6]} 25... Qxb7 {[%clk 0:01:35.1]} 26. Ng2 {[%clk 0:01:16.9]}
26... b5 {[%clk 0:01:28.9]} 27. axb5 {[%clk 0:01:17.4]} 27... axb5 {[%clk
0:01:29.8]} 28. Ne3 {[%clk 0:01:18.9]} 28... bxc4 {[%clk 0:01:23.8]} 29. bxc4
{[%clk 0:01:18]} 29... Ne4 {[%clk 0:01:13.8]} 30. Ba5 {[%clk 0:01:05.1]} 30...
Re8 {[%clk 0:00:59.2]} 31. h4 {[%clk 0:01:02.4]} 31... Nc5 {[%clk 0:00:49.1]}
32. Bc3 {[%clk 0:00:52.6]} 32... Qe4 {[%clk 0:00:30.4]} 33. Rxd6 {[%clk
0:00:43.5]} 33... Qxc2 {[%clk 0:00:27.2]} 34. Rxc2 {[%clk 0:00:45.4]} 34... Ne4
{[%clk 0:00:28.3]} 35. Rd7 {[%clk 0:00:45.6]} 35... Nxc3 {[%clk 0:00:24.5]} 36.
Rxc3 {[%clk 0:00:47.5]} 36... e4 {[%clk 0:00:25.7]} 37. Rc2 {[%clk 0:00:48.4]}
37... Red8 {[%clk 0:00:26.1]} 38. Rxd8+ {[%clk 0:00:48.5]} 38... Rxd8 {[%clk
0:00:28]} 39. c5 {[%clk 0:00:49]} 39... Kf8 {[%clk 0:00:26.6]} 40. c6 {[%clk
0:00:49.5]} 40... Bd4 {[%clk 0:00:21.4]} 41. Rd2 {[%clk 0:00:49.5]} 41... Bb6
{[%clk 0:00:22]} 42. Rxd8+ {[%clk 0:00:48.4]} 42... Bxd8 {[%clk 0:00:23.9]} 43.
Nd5 {[%clk 0:00:50.3]} 43... Ke8 {[%clk 0:00:18]} 44. c7 {[%clk 0:00:50.6]}
44... Bxc7 {[%clk 0:00:19.6]} 45. Nxc7+ {[%clk 0:00:52.3]} 45... Ke7 {[%clk
0:00:18.9]} 46. Nd5+ {[%clk 0:00:53.5]} 46... Ke6 {[%clk 0:00:19.4]} 47. Ne3
{[%clk 0:00:54.7]} 47... f5 {[%clk 0:00:16.8]} 48. Kf1 {[%clk 0:00:50.8]} 48...
h6 {[%clk 0:00:17.5]} 49. Ke2 {[%clk 0:00:51.4]} 49... g5 {[%clk 0:00:14.3]} 50.
h5 {[%clk 0:00:51.3]} 50... f4 {[%clk 0:00:08.1]} 51. Ng4 {[%clk 0:00:50.1]}
51... e3 {[%clk 0:00:06.1]} 52. fxe3 {[%clk 0:00:49.7]} 52... fxg3 {[%clk
0:00:07.3]} 53. Kf3 {[%clk 0:00:50.1]} 1-0

[Event "*** Titled Tuesday 3|2 Blitz (Early)"]
[Site "Chess.com"]
[Date "2017.01.03"]
[Round "3"]
[White "sorito"]
[Black "Morshynska"]
[Result "1/2-1/2"]
[WhiteElo "2322"]
[BlackElo "2120"]
[TimeControl "180+2"]
[EndTime "11:36:20 PST"]
[Termination "Game drawn by agreement"]

1. d4 {[%clk 0:03:00]} 1... Nf6 {[%clk 0:02:59.6]} 2. Bf4 {[%clk 0:03:00.9]}
2... e6 {[%clk 0:02:59.9]} 3. c3 {[%clk 0:03:02.1]} 3... c5 {[%clk 0:03:00.1]}
4. e3 {[%clk 0:03:00.5]} 4... d5 {[%clk 0:02:59]} 5. Nf3 {[%clk 0:03:01.2]} 5...
Bd6 {[%clk 0:02:59.4]} 6. Bg3 {[%clk 0:03:01.6]} 6... Nc6 {[%clk 0:02:59.3]} 7.
Nbd2 {[%clk 0:03:02.7]} 7... Qe7 {[%clk 0:02:57.9]} 8. Bd3 {[%clk 0:03:02.2]}
8... O-O {[%clk 0:02:53.7]} 9. O-O {[%clk 0:03:03.1]} 9... e5 {[%clk 0:02:54.3]}
10. dxe5 {[%clk 0:02:59.3]} 10... Nxe5 {[%clk 0:02:56.2]} 11. Nxe5 {[%clk
0:02:59.8]} 11... Bxe5 {[%clk 0:02:58.1]} 12. Bxe5 {[%clk 0:02:56.6]} 12... Qxe5
{[%clk 0:03:00]} 13. Nf3 {[%clk 0:02:57.5]} 13... Qe7 {[%clk 0:02:57.1]} 14. h3
{[%clk 0:02:56.6]} 14... Rd8 {[%clk 0:02:55.9]} 15. Re1 {[%clk 0:02:56.2]} 15...
Ne4 {[%clk 0:02:53.7]} 16. Qc2 {[%clk 0:02:47.4]} 16... f5 {[%clk 0:02:46.2]}
17. Rad1 {[%clk 0:02:47.2]} 17... Be6 {[%clk 0:02:45.4]} 18. a3 {[%clk
0:02:41.1]} 18... a5 {[%clk 0:02:45.2]} 19. c4 {[%clk 0:02:41.7]} 19... Kh8
{[%clk 0:02:34.2]} 20. Ne5 {[%clk 0:02:18]} 20... Qf6 {[%clk 0:02:22.1]} 21. f4
{[%clk 0:02:15.1]} 21... Nd6 {[%clk 0:01:55.8]} 22. cxd5 {[%clk 0:02:05.4]}
22... Bxd5 {[%clk 0:01:57.7]} 23. Qxc5 {[%clk 0:02:04.8]} 23... Bb3 {[%clk
0:01:30.1]} 24. Rc1 {[%clk 0:01:38.5]} 24... a4 {[%clk 0:01:21.2]} 25. Qb6
{[%clk 0:01:23.8]} 25... h6 {[%clk 0:00:57.5]} 26. Rc7 {[%clk 0:01:22.8]} 26...
Kg8 {[%clk 0:00:44.3]} 27. Rec1 {[%clk 0:01:21]} 27... Nf7 {[%clk 0:00:21.5]}
28. Qxf6 {[%clk 0:01:16.7]} 28... gxf6 {[%clk 0:00:22.1]} 29. Nxf7 {[%clk
0:01:09.7]} 29... Rxd3 {[%clk 0:00:18]} 30. Nxh6+ {[%clk 0:01:10.6]} 30... Kf8
{[%clk 0:00:17.1]} 31. Nxf5 {[%clk 0:01:08.9]} 31... Rd2 {[%clk 0:00:16.3]} 32.
Nd4 {[%clk 0:01:03.9]} 32... Bd5 {[%clk 0:00:15.1]} 33. Nf3 {[%clk 0:01:02.3]}
33... Rxb2 {[%clk 0:00:14]} 34. R1c5 {[%clk 0:00:58.3]} 34... Bxf3 {[%clk
0:00:10.9]} 35. gxf3 {[%clk 0:00:59.2]} 35... b5 {[%clk 0:00:08.2]} 36. Rh5
{[%clk 0:00:59]} 36... Kg8 {[%clk 0:00:07.7]} 37. Rd5 {[%clk 0:00:53.3]} 37...
b4 {[%clk 0:00:08.3]} 38. Rdd7 {[%clk 0:00:52.5]} 38... bxa3 {[%clk 0:00:07.2]}
39. Rg7+ {[%clk 0:00:53.5]} 39... Kh8 {[%clk 0:00:07.4]} 40. Rh7+ {[%clk
0:00:54.4]} 40... Kg8 {[%clk 0:00:07.9]} 41. Rcg7+ {[%clk 0:00:55.6]} 41... Kf8
{[%clk 0:00:09.1]} 42. Rf7+ {[%clk 0:00:54.9]} 42... Kg8 {[%clk 0:00:08.8]} 43.
Rhg7+ {[%clk 0:00:54.7]} 43... Kh8 {[%clk 0:00:09.9]} 44. Rh7+ {[%clk
0:00:55.4]} 44... Kg8 {[%clk 0:00:11.1]} 45. Rfg7+ {[%clk 0:00:56.1]} 45... Kf8
{[%clk 0:00:11.9]} 1/2-1/2

[Event "*** Titled Tuesday 3|2 Blitz (Early)"]
[Site "Chess.com"]
[Date "2017.01.03"]
[Round "3"]
[White "Divertissement"]
[Black "Ar4uha"]
[Result "1-0"]
[WhiteElo "2440"]
[BlackElo "1200"]
[TimeControl "180+2"]
[EndTime "11:36:31 PST"]
[Termination "Divertissement won by resignation"]

1. c4 {[%clk 0:03:02]} 1... Nf6 {[%clk 0:03:00.3]} 2. Nc3 {[%clk 0:03:03]} 2...
e6 {[%clk 0:03:01.7]} 3. e4 {[%clk 0:03:02.8]} 3... d5 {[%clk 0:03:02.8]} 4. e5
{[%clk 0:03:04.1]} 4... d4 {[%clk 0:03:04.4]} 5. exf6 {[%clk 0:03:05.2]} 5...
dxc3 {[%clk 0:03:06.3]} 6. bxc3 {[%clk 0:03:06.6]} 6... Qxf6 {[%clk 0:03:08]} 7.
Nf3 {[%clk 0:03:08]} 7... Nc6 {[%clk 0:03:08.7]} 8. Bd3 {[%clk 0:03:08.9]} 8...
e5 {[%clk 0:03:09.2]} 9. Be4 {[%clk 0:03:10.1]} 9... Bf5 {[%clk 0:03:06.9]} 10.
Qe2 {[%clk 0:03:09.4]} 10... Bxe4 {[%clk 0:03:05.3]} 11. Qxe4 {[%clk 0:03:11.3]}
11... O-O-O {[%clk 0:03:06.6]} 12. O-O {[%clk 0:03:06]} 12... Bd6 {[%clk
0:03:07.8]} 13. d4 {[%clk 0:03:01.2]} 13... exd4 {[%clk 0:03:06.2]} 14. Bg5
{[%clk 0:03:02]} 14... Rhe8 {[%clk 0:03:08.1]} 15. Qg4+ {[%clk 0:03:00.6]} 15...
Qe6 {[%clk 0:02:47.3]} 16. Qxe6+ {[%clk 0:02:59.3]} 16... fxe6 {[%clk
0:02:44.2]} 17. Bxd8 {[%clk 0:03:00.7]} 17... Rxd8 {[%clk 0:02:46.1]} 18. cxd4
{[%clk 0:02:59]} 18... Be7 {[%clk 0:02:46.9]} 19. Rad1 {[%clk 0:02:58.3]} 19...
Bf6 {[%clk 0:02:48.4]} 20. d5 {[%clk 0:02:55]} 20... exd5 {[%clk 0:02:50.3]} 21.
cxd5 {[%clk 0:02:50.5]} 21... Nb4 {[%clk 0:02:50.3]} 22. d6 {[%clk 0:02:49.9]}
22... cxd6 {[%clk 0:02:52.2]} 23. a4 {[%clk 0:02:47.8]} 23... Kc7 {[%clk
0:02:52.7]} 24. Nd4 {[%clk 0:02:48.6]} 24... a6 {[%clk 0:02:51.4]} 25. Ne6+
{[%clk 0:02:49.2]} 25... Kd7 {[%clk 0:02:51]} 26. Nxd8 {[%clk 0:02:49]} 26...
Bxd8 {[%clk 0:02:52.9]} 27. Rd4 {[%clk 0:02:45.2]} 27... Nc6 {[%clk 0:02:52.1]}
28. Rg4 {[%clk 0:02:39.5]} 28... Bf6 {[%clk 0:02:53]} 29. Rb1 {[%clk 0:02:39.8]}
29... Kc7 {[%clk 0:02:54]} 30. Kf1 {[%clk 0:02:37.6]} 30... d5 {[%clk 0:02:55]}
31. Rg3 {[%clk 0:02:33.8]} 31... a5 {[%clk 0:02:49.6]} 32. Ke2 {[%clk
0:02:30.4]} 32... Nb4 {[%clk 0:02:50.1]} 33. Rgb3 {[%clk 0:02:24.9]} 33... Be7
{[%clk 0:02:50]} 34. Rd1 {[%clk 0:02:21.9]} 34... Kc6 {[%clk 0:02:47.3]} 35.
Rc1+ {[%clk 0:02:17.3]} 35... Kd6 {[%clk 0:02:46]} 36. Rc8 {[%clk 0:02:13]}
36... Bf6 {[%clk 0:02:44.1]} 37. f4 {[%clk 0:02:03.2]} 37... Kd7 {[%clk
0:02:32.7]} 38. Rc1 {[%clk 0:01:58.4]} 38... Kd6 {[%clk 0:02:32.1]} 39. g4
{[%clk 0:01:57.9]} 39... h6 {[%clk 0:02:32.7]} 40. Kf3 {[%clk 0:01:51.6]} 40...
b6 {[%clk 0:02:29.7]} 41. Rh1 {[%clk 0:01:47.4]} 41... Kc5 {[%clk 0:02:28.7]}
42. h4 {[%clk 0:01:44.5]} 42... b5 {[%clk 0:02:25]} 43. axb5 {[%clk 0:01:41.1]}
43... a4 {[%clk 0:02:24.9]} 44. Ra3 {[%clk 0:01:38.7]} 44... Kxb5 {[%clk
0:02:21.8]} 45. Rb1 {[%clk 0:01:25.8]} 45... Bd4 {[%clk 0:02:13.5]} 46. Rd3
{[%clk 0:01:21.9]} 46... Bc5 {[%clk 0:01:34.8]} 47. Rxd5 {[%clk 0:01:19.1]}
47... Kc4 {[%clk 0:01:36.5]} 48. Rdd1 {[%clk 0:01:06.2]} 48... a3 {[%clk
0:01:35.2]} 49. Rdc1+ {[%clk 0:01:04.9]} 49... Kb5 {[%clk 0:01:35.2]} 50. Rc2
{[%clk 0:00:38.4]} 50... Bd4 {[%clk 0:01:29.9]} 51. Rd2 {[%clk 0:00:32]} 51...
Bc3 {[%clk 0:01:26.2]} 52. Re2 {[%clk 0:00:27.7]} 52... Kc5 {[%clk 0:01:21.7]}
53. Rb3 {[%clk 0:00:21]} 53... Bf6 {[%clk 0:00:50.7]} 54. Rxa3 {[%clk
0:00:20.7]} 54... Bxh4 {[%clk 0:00:50.7]} 55. Ra5+ {[%clk 0:00:17.9]} 55... Kb6
{[%clk 0:00:48.9]} 56. Rh5 {[%clk 0:00:17.4]} 56... Bf6 {[%clk 0:00:49.8]} 57.
Re6+ {[%clk 0:00:16.9]} 57... Kc7 {[%clk 0:00:50.7]} 58. Rxf6 {[%clk 0:00:18.4]}
58... Nd5 {[%clk 0:00:52.3]} 59. Rf7+ {[%clk 0:00:18.7]} 59... Kc6 {[%clk
0:00:53.4]} 60. Rxd5 {[%clk 0:00:19.1]} 1-0

[Event "*** Titled Tuesday 3|2 Blitz (Early)"]
[Site "Chess.com"]
[Date "2017.01.03"]
[Round "3"]
[White "iturrizaga"]
[Black "mwpchess"]
[Result "1/2-1/2"]
[WhiteElo "2627"]
[BlackElo "2443"]
[TimeControl "180+2"]
[EndTime "11:36:36 PST"]
[Termination "Game drawn by repetition"]

1. Nf3 {[%clk 0:03:02]} 1... c5 {[%clk 0:02:56.8]} 2. c4 {[%clk 0:03:03.9]} 2...
Nc6 {[%clk 0:02:56.5]} 3. Nc3 {[%clk 0:03:04.6]} 3... g6 {[%clk 0:02:56.1]} 4.
e3 {[%clk 0:03:04.5]} 4... Nf6 {[%clk 0:02:55.3]} 5. d4 {[%clk 0:03:06]} 5...
cxd4 {[%clk 0:02:56.2]} 6. exd4 {[%clk 0:03:06.9]} 6... d5 {[%clk 0:02:56.7]} 7.
cxd5 {[%clk 0:03:01.2]} 7... Nxd5 {[%clk 0:02:57]} 8. Qb3 {[%clk 0:03:02.3]}
8... e6 {[%clk 0:02:55.2]} 9. Bg5 {[%clk 0:03:01.3]} 9... Be7 {[%clk 0:02:54.9]}
10. Bh6 {[%clk 0:03:01.5]} 10... Bf8 {[%clk 0:02:54.6]} 11. Bxf8 {[%clk
0:02:59.3]} 11... Kxf8 {[%clk 0:02:55]} 12. Bb5 {[%clk 0:03:00.9]} 12... Na5
{[%clk 0:02:45.6]} 13. Qa3+ {[%clk 0:03:00.4]} 13... Kg7 {[%clk 0:02:42.3]} 14.
Nxd5 {[%clk 0:02:38.1]} 14... exd5 {[%clk 0:02:39.1]} 15. O-O {[%clk 0:02:39.3]}
15... b6 {[%clk 0:02:38]} 16. Rfe1 {[%clk 0:02:38.6]} 16... Be6 {[%clk
0:02:30.3]} 17. Ne5 {[%clk 0:02:23.5]} 17... Rc8 {[%clk 0:02:15.3]} 18. b3
{[%clk 0:01:52.9]} 18... Qh4 {[%clk 0:01:43.4]} 19. Nf3 {[%clk 0:01:50.2]} 19...
Qf6 {[%clk 0:01:35.2]} 20. Re3 {[%clk 0:01:49.7]} 20... Rc7 {[%clk 0:01:20.1]}
21. Rae1 {[%clk 0:01:50.1]} 21... Rhc8 {[%clk 0:01:17.6]} 22. Ba6 {[%clk
0:01:51.6]} 22... Rd8 {[%clk 0:01:12.9]} 23. h3 {[%clk 0:01:47]} 23... h6 {[%clk
0:00:54.6]} 24. Ne5 {[%clk 0:01:46.5]} 24... Qf4 {[%clk 0:00:42.9]} 25. Qb2
{[%clk 0:01:28.8]} 25... Nc6 {[%clk 0:00:40.6]} 26. Nf3 {[%clk 0:01:01.5]} 26...
Nb4 {[%clk 0:00:33.8]} 27. Bd3 {[%clk 0:01:01]} 27... Nxd3 {[%clk 0:00:33.3]}
28. Rxd3 {[%clk 0:01:02.9]} 28... Rdc8 {[%clk 0:00:32.5]} 29. Qa3 {[%clk
0:01:02.9]} 29... Bf5 {[%clk 0:00:29.2]} 30. Rde3 {[%clk 0:01:04]} 30... Be4
{[%clk 0:00:29.3]} 31. Ne5 {[%clk 0:01:02.9]} 31... Qg5 {[%clk 0:00:19.7]} 32.
Nf3 {[%clk 0:00:41.2]} 32... Bxf3 {[%clk 0:00:19.9]} 33. Rxf3 {[%clk 0:00:43.1]}
33... Rc1 {[%clk 0:00:20.7]} 34. Re3 {[%clk 0:00:38.3]} 34... Rxe1+ {[%clk
0:00:20.2]} 35. Rxe1 {[%clk 0:00:40.2]} 35... Qd2 {[%clk 0:00:20.7]} 36. Rf1
{[%clk 0:00:41.2]} 36... a5 {[%clk 0:00:16]} 37. Qa4 {[%clk 0:00:42.1]} 37...
Rc2 {[%clk 0:00:14.2]} 38. a3 {[%clk 0:00:42.2]} 38... Rc1 {[%clk 0:00:15.1]}
39. g3 {[%clk 0:00:36.8]} 39... Rxf1+ {[%clk 0:00:11.1]} 40. Kxf1 {[%clk
0:00:38.7]} 40... Qd1+ {[%clk 0:00:11.6]} 41. Kg2 {[%clk 0:00:40.3]} 41... Qe2
{[%clk 0:00:11.3]} 42. h4 {[%clk 0:00:40.5]} 42... Qe4+ {[%clk 0:00:11.4]} 43.
Kg1 {[%clk 0:00:41.4]} 43... Qe1+ {[%clk 0:00:12.1]} 44. Kg2 {[%clk 0:00:42.5]}
44... Qe4+ {[%clk 0:00:12.8]} 45. Kh2 {[%clk 0:00:30.4]} 45... Qf3 {[%clk
0:00:12.9]} 46. Kg1 {[%clk 0:00:30.8]} 46... Qd1+ {[%clk 0:00:10.8]} 47. Kg2
{[%clk 0:00:32.2]} 47... Qe2 {[%clk 0:00:10.9]} 48. Kg1 {[%clk 0:00:23.5]} 48...
Qe1+ {[%clk 0:00:11.7]} 49. Kg2 {[%clk 0:00:25]} 49... Qe4+ {[%clk 0:00:12.4]}
50. Kh2 {[%clk 0:00:26]} 50... Qe2 {[%clk 0:00:12.8]} 51. Kg1 {[%clk 0:00:24.6]}
51... Qe1+ {[%clk 0:00:13.5]} 52. Kg2 {[%clk 0:00:26.1]} 52... Qe4+ {[%clk
0:00:14.3]} 1/2-1/2

[Event "*** Titled Tuesday 3|2 Blitz (Early)"]
[Site "Chess.com"]
[Date "2017.01.03"]
[Round "3"]
[White "davidarenas1224"]
[Black "Goala"]
[Result "1-0"]
[WhiteElo "2219"]
[BlackElo "2175"]
[TimeControl "180+2"]
[EndTime "11:36:36 PST"]
[Termination "davidarenas1224 won by resignation"]

1. e4 {[%clk 0:03:02]} 1... e6 {[%clk 0:03:00.3]} 2. d4 {[%clk 0:03:02.6]} 2...
d5 {[%clk 0:03:01.8]} 3. Nd2 {[%clk 0:03:03.7]} 3... Nf6 {[%clk 0:03:03.3]} 4.
e5 {[%clk 0:03:03.5]} 4... Nfd7 {[%clk 0:03:04.6]} 5. Bd3 {[%clk 0:03:03.4]}
5... c5 {[%clk 0:03:05.4]} 6. c3 {[%clk 0:03:04.3]} 6... Nc6 {[%clk 0:03:06]} 7.
Ne2 {[%clk 0:03:05.4]} 7... cxd4 {[%clk 0:03:06.6]} 8. cxd4 {[%clk 0:03:06.2]}
8... f6 {[%clk 0:03:08.5]} 9. exf6 {[%clk 0:03:07]} 9... Nxf6 {[%clk 0:02:56.5]}
10. O-O {[%clk 0:03:07.8]} 10... Bd6 {[%clk 0:02:58]} 11. Nf3 {[%clk 0:03:08.6]}
11... Qc7 {[%clk 0:02:59.4]} 12. h3 {[%clk 0:03:07.9]} 12... O-O {[%clk
0:02:54.7]} 13. Bd2 {[%clk 0:03:09]} 13... Bd7 {[%clk 0:02:55.6]} 14. Bc3 {[%clk
0:03:08.6]} 14... Be8 {[%clk 0:02:54.2]} 15. Ng5 {[%clk 0:03:01.9]} 15... Qe7
{[%clk 0:02:53.6]} 16. Ng3 {[%clk 0:02:46.7]} 16... h6 {[%clk 0:02:46.2]} 17.
Nf3 {[%clk 0:02:46.6]} 17... Nh5 {[%clk 0:02:47.5]} 18. Nxh5 {[%clk 0:02:39.4]}
18... Bxh5 {[%clk 0:02:49.4]} 19. Be2 {[%clk 0:02:41]} 19... Bxf3 {[%clk
0:02:36]} 20. Bxf3 {[%clk 0:02:40.8]} 20... Qg5 {[%clk 0:02:37.6]} 21. Bg4
{[%clk 0:02:35]} 21... Rf6 {[%clk 0:02:18.7]} 22. Qd3 {[%clk 0:02:22.9]} 22...
h5 {[%clk 0:01:51.3]} 23. Bd1 {[%clk 0:02:09.6]} 23... Raf8 {[%clk 0:01:49.9]}
24. Bc2 {[%clk 0:02:08.4]} 24... g6 {[%clk 0:01:40.7]} 25. Rae1 {[%clk 0:02:06]}
25... Kg7 {[%clk 0:01:31.4]} 26. Re3 {[%clk 0:01:57.5]} 26... Nb4 {[%clk
0:01:15.8]} 27. Bxb4 {[%clk 0:01:54.5]} 27... Bxb4 {[%clk 0:01:17.7]} 28. Rg3
{[%clk 0:01:54.1]} 28... Qh6 {[%clk 0:00:50.1]} 29. Qb5 {[%clk 0:01:40.9]} 29...
Bd2 {[%clk 0:00:44.7]} 30. Qxb7+ {[%clk 0:01:36.5]} 30... R8f7 {[%clk
0:00:45.9]} 31. Qc8 {[%clk 0:01:18.3]} 31... Qf4 {[%clk 0:00:44.5]} 32. Rd3
{[%clk 0:00:47]} 32... Be1 {[%clk 0:00:41.7]} 33. Rf3 {[%clk 0:00:44.4]} 33...
Qd2 {[%clk 0:00:17.1]} 34. Rxf6 {[%clk 0:00:30.8]} 34... Rxf6 {[%clk 0:00:14.5]}
35. Qc7+ {[%clk 0:00:31]} 35... Rf7 {[%clk 0:00:13.6]} 36. Qe5+ {[%clk
0:00:31.8]} 36... Rf6 {[%clk 0:00:08.9]} 37. Qxe1 {[%clk 0:00:31.8]} 37... Qxc2
{[%clk 0:00:09.8]} 38. Qc3 {[%clk 0:00:26.6]} 38... Qe4 {[%clk 0:00:09.6]} 39.
Re1 {[%clk 0:00:22]} 39... Qf4 {[%clk 0:00:10.2]} 40. Qe3 {[%clk 0:00:21.8]}
40... Qf5 {[%clk 0:00:09.6]} 41. Re2 {[%clk 0:00:20.6]} 41... Qb1+ {[%clk
0:00:10.3]} 42. Kh2 {[%clk 0:00:21.4]} 42... Qxa2 {[%clk 0:00:11.6]} 43. Qe5
{[%clk 0:00:23]} 43... Qc4 {[%clk 0:00:12.5]} 44. Re3 {[%clk 0:00:24]} 44... Qc8
{[%clk 0:00:11.6]} 45. Rf3 {[%clk 0:00:24.6]} 45... Qd8 {[%clk 0:00:12.2]} 46.
g4 {[%clk 0:00:24.4]} 46... hxg4 {[%clk 0:00:12.4]} 47. hxg4 {[%clk 0:00:25.6]}
47... Qh8+ {[%clk 0:00:13.5]} 48. Kg3 {[%clk 0:00:25.9]} 48... Kf7 {[%clk
0:00:14.1]} 49. Qc7+ {[%clk 0:00:25.2]} 49... Kg8 {[%clk 0:00:09.1]} 50. Qd8+
{[%clk 0:00:26.3]} 50... Kh7 {[%clk 0:00:08.9]} 51. Qxh8+ {[%clk 0:00:27]} 51...
Kxh8 {[%clk 0:00:10.8]} 52. Rxf6 {[%clk 0:00:28.3]} 1-0